bitfinex/quotes_SOLUSD_20250726
["timestamp","ask_amount","ask_price","bid_price","bid_amount"]
[1753489280032,5.36595836,186.36,186.31,16.78468397]
[1753489280228,5.36595836,186.36,186.34,16.78468397]
[1753489281334,0.66,186.36,186.31,16.78468397]
[1753489281536,0.66,186.35,186.33,16.78468397]
[1753489282132,0.66,186.34,186.31,16.78468397]
[1753489282314,0.66,186.33,186.3,37.38]
[1753489282520,0.66,186.32,186.3,37.38]
[1753489283132,4.65639892,186.38,186.31,17.47468397]
[1753489283432,5.36567044,186.37,186.33,16.78468397]
[1753489283636,6.02567044,186.37,186.33,17.47468397]
[1753489284519,0.66,186.37,186.33,0.69]
[1753489284931,13.41321928,186.39,186.31,16.78468397]
[1753489285129,0.66,186.36,186.33,16.78468397]
[1753489286047,5.36624631,186.35,186.33,16.78468397]
[1753489286628,5.36624631,186.35,186.31,16.78468397]
[1753489286832,5.36624631,186.35,186.33,0.69]
[1753489287746,5.36624631,186.35,186.31,17.47468397]
[1753489287927,5.36624631,186.35,186.31,16.78468397]
[1753489288128,5.36595836,186.36,186.33,16.78468397]
[1753489288336,6.02595836,186.36,186.33,16.78468397]
[1753489288648,6.02595836,186.36,186.33,0.69]
[1753489289650,5.36538255,186.38,186.35,16.78468397]
[1753489289828,5.36538255,186.38,186.36,0.69]
[1753489290351,5.36538255,186.38,186.35,16.78468397]
[1753489290653,6.02538255,186.38,186.35,16.78468397]
[1753489291538,6.02538255,186.38,186.35,17.47468397]
[1753489292040,5.36538255,186.38,186.35,16.78468397]
[1753489292235,5.36538255,186.38,186.36,0.69]
[1753489293030,5.36538255,186.38,186.35,16.78468397]
[1753489293326,5.36538255,186.38,186.36,0.69]
[1753489293532,9.37841276,186.38,186.36,0.69]
[1753489293735,9.37841276,186.38,186.35,17.47468397]
[1753489293939,5.36538255,186.38,186.35,16.78468397]
[1753489294128,5.36538255,186.38,186.36,0.69]
[1753489294326,5.36538255,186.38,186.35,16.78468397]
[1753489294552,9.37841318,186.38,186.35,17.47468397]
[1753489295436,5.36538255,186.38,186.35,17.47468397]
[1753489295636,9.37919932,186.38,186.35,16.78468397]
[1753489295965,9.37919932,186.38,186.34,37.38]
[1753489295966,5.36480686,186.4,186.37,16.78468397]
[1753489296145,5.36480686,186.4,186.37,0.69]
[1753489296146,9.37847532,186.4,186.37,0.69]
[1753489297342,10.03847532,186.4,186.37,0.69]
[1753489297656,6.02480686,186.4,186.37,0.69]
[1753489298854,5.36480686,186.4,186.38,0.69]
[1753489299034,17.71075857,186.42,186.4,16.78468397]
[1753489299035,4.01410798,186.41,186.4,16.78468397]
[1753489299230,5.36369961,186.44,186.42,16.78468397]
[1753489299454,5.36369961,186.44,186.42,17.47468397]
[1753489299661,5.36369961,186.44,186.4,0.69]
[1753489300041,5.36369961,186.44,186.42,16.78468397]
[1753489300357,5.36201426,186.5,186.42,54.16468397]
[1753489300534,5.36201426,186.5,186.44,16.78468397]
[1753489300863,5.36201426,186.5,186.45,38.07]
[1753489301040,5.36201426,186.5,186.47,16.78468397]
[1753489301444,5.36201426,186.5,186.47,17.47468397]
[1753489301639,5.36135535,186.52,186.47,16.78468397]
[1753489301959,6.06135535,186.52,186.49,16.78468397]
[1753489302565,5.36135535,186.52,186.49,0.69]
[1753489302743,6.06135535,186.52,186.47,0.69]
[1753489302945,6.06135535,186.52,186.49,16.78468397]
[1753489303358,5.36135535,186.52,186.46,16.78468397]
[1753489303545,5.36135535,186.52,186.49,0.69]
[1753489304148,5.36135535,186.52,186.51,16.78468397]
[1753489304966,5.36106792,186.53,186.51,16.78468397]
[1753489305264,6.06106792,186.53,186.49,17.47468397]
[1753489305853,6.06106792,186.53,186.5,0.69]
[1753489306773,5.36049316,186.55,186.49,54.14468397]
[1753489306950,5.36049316,186.55,186.51,0.69]
[1753489307266,5.36049316,186.55,186.52,0.69]
[1753489308867,0.7,186.55,186.52,0.69]
[1753489309059,6.05991852,186.57,186.52,0.69]
[1753489309260,0.7,186.56,186.52,0.69]
[1753489310150,0.7,186.55,186.51,16.78468397]
[1753489310365,0.7,186.55,186.51,0.69]
[1753489310878,5.36078052,186.54,186.51,0.69]
[1753489314465,5.36078052,186.54,186.5,16.78468397]
[1753489314646,6.06078052,186.54,186.5,17.47468397]
[1753489315377,0.7,186.53,186.5,16.78468397]
[1753489315771,0.7,186.52,186.5,16.78468397]
[1753489316462,5.36135535,186.52,186.5,16.78468397]
[1753489318464,5.36078052,186.54,186.5,17.47468397]
[1753489318761,5.36078052,186.54,186.51,0.69]
[1753489319964,5.36078052,186.54,186.53,16.78468397]
[1753489320680,5.36049316,186.55,186.53,16.78468397]
[1753489320985,5.36049316,186.55,186.5,16.78468397]
[1753489321283,0.7,186.54,186.5,16.78468397]
[1753489321774,0.7,186.54,186.46,16.78468397]
[1753489321952,0.7,186.54,186.46,54.12468397]
[1753489322872,18.76373773,186.53,186.47,0.69]
[1753489323091,0.7,186.52,186.48,16.78468397]
[1753489323267,0.7,186.51,186.47,16.78468397]
[1753489323467,0.7,186.51,186.47,17.47468397]
[1753489323977,0.7,186.5,186.47,17.47468397]
[1753489324183,19.46373773,186.53,186.48,0.69]
[1753489324366,0.7,186.52,186.48,0.69]
[1753489324867,5.3616428,186.51,186.48,0.69]
[1753489326190,6.0616428,186.51,186.47,16.78468397]
[1753489326375,0.7,186.5,186.47,16.78468397]
[1753489326892,5.36221781,186.49,186.47,16.78468397]
[1753489327887,5.36221781,186.49,186.45,87.4]
[1753489327888,0.7,186.48,186.45,87.4]
[1753489328093,18.76776234,186.49,186.45,87.4]
[1753489328094,0.67,186.47,186.45,87.4]
[1753489328585,19.43776234,186.49,186.45,87.4]
[1753489328787,19.43776234,186.49,186.44,16.78468397]
[1753489328988,0.67,186.48,186.44,0.69]
[1753489329163,0.67,186.48,186.45,37.34]
[1753489330087,5.36279294,186.47,186.45,38.03]
[1753489332190,18.76776234,186.49,186.45,38.03]
[1753489332393,19.43776234,186.49,186.45,38.03]
[1753489333176,19.43776234,186.49,186.46,0.69]
[1753489335295,18.76574981,186.51,186.45,87.4]
[1753489335674,0.67,186.5,186.45,87.4]
[1753489335995,0.67,186.5,186.43,16.78468397]
[1753489336194,18.76776234,186.49,186.43,16.78468397]
[1753489336404,0.67,186.48,186.43,16.78468397]
[1753489337589,18.76977529,186.47,186.43,16.78468397]
[1753489337999,0.67,186.46,186.43,16.78468397]
[1753489340596,5.36336819,186.45,186.43,16.78468397]
[1753489342606,5.36336819,186.45,186.42,38.05]
[1753489342902,5.36336819,186.45,186.42,37.36]
[1753489343200,0.67,186.44,186.39,37.36]
[1753489343777,0.67,186.44,186.4,0.69]
[1753489344688,0.67,186.43,186.4,0.69]
[1753489345005,5.3642313,186.42,186.4,16.78468397]
[1753489345208,5.3642313,186.42,186.41,0.69]
[1753489347610,5.36365586,186.44,186.41,0.69]
[1753489347787,6.03365586,186.44,186.41,0.69]
[1753489349339,5.36365586,186.44,186.42,0.69]
[1753489349618,0.67,186.5,186.43,16.78468397]
[1753489349907,0.67,186.5,186.45,16.78468397]
[1753489350407,0.67,186.5,186.45,0.69]
[1753489350614,0.67,186.49,186.45,0.69]
[1753489351505,5.36250536,186.48,186.45,0.69]
[1753489353113,0.67,186.48,186.45,0.69]
[1753489353690,5.36193029,186.5,186.47,16.78468397]
[1753489353894,5.36193029,186.5,186.48,0.69]
[1753489354613,5.36135535,186.52,186.47,16.78468397]
[1753489354819,5.36135535,186.52,186.49,0.69]
[1753489356895,0.67,186.51,186.44,6.4141]
[1753489357097,0.67,186.51,186.44,16.78468397]
[1753489357695,0.67,186.51,186.44,17.47468397]
[1753489358618,5.36193029,186.5,186.44,17.47468397]
[1753489358995,6.01193029,186.5,186.44,17.47468397]
[1753489359797,6.01193029,186.5,186.44,16.78468397]
[1753489360013,6.01193029,186.5,186.46,16.78468397]
[1753489360392,0.65,186.49,186.46,16.78468397]
[1753489361505,0.65,186.48,186.46,16.78468397]
[1753489362118,5.36279294,186.47,186.46,16.78468397]
[1753489362616,6.01279294,186.47,186.44,16.78468397]
[1753489364199,27.5564,186.51,186.41,1.6483]
[1753489364399,34.25912345,186.5,186.42,16.78468397]
[1753489364724,8.25912345,186.49,186.42,16.78468397]
[1753489364908,7.60912345,186.49,186.42,16.78468397]
[1753489365224,0.65,186.48,186.42,16.78468397]
[1753489365720,18.76977529,186.47,186.42,16.78468397]
[1753489366019,18.76977529,186.47,186.42,17.44468397]
[1753489366020,0.65,186.46,186.42,17.44468397]
[1753489366717,5.36336819,186.45,186.42,17.44468397]
[1753489367816,13.40698235,186.47,186.42,16.78468397]
[1753489368009,14.05698235,186.47,186.43,0.66]
[1753489368207,14.05698235,186.47,186.44,0.66]
[1753489370222,19.41977529,186.47,186.42,17.44468397]
[1753489370394,0.65,186.46,186.42,17.44468397]
[1753489371605,18.76977529,186.47,186.43,0.66]
[1753489371800,18.76977529,186.47,186.42,16.78468397]
[1753489372000,18.76977529,186.47,186.44,0.66]
[1753489373326,14.05698235,186.47,186.44,0.66]
[1753489375533,19.41977529,186.47,186.42,17.44468397]
[1753489375713,19.41977529,186.47,186.43,0.66]
[1753489376620,6.01279294,186.47,186.42,16.78468397]
[1753489376822,6.01279294,186.47,186.43,0.66]
[1753489377004,6.01279294,186.47,186.44,0.66]
[1753489379407,5.36279294,186.47,186.45,0.66]
[1753489379727,0.65,186.46,186.41,16.78468397]
[1753489379899,0.65,186.46,186.37,5.36557522]
[1753489379900,0.65,186.46,186.37,54.80468397]
[1753489380100,4.66212032,186.46,186.37,168.20468397]
[1753489380331,4.66212032,186.46,186.37,167.54468397]
[1753489380542,0.65,186.45,186.39,16.78468397]
[1753489380841,0.65,186.45,186.39,17.44468397]
[1753489381201,5.36365586,186.44,186.4,0.66]
[1753489381602,6.01365586,186.44,186.4,0.66]
[1753489382123,5.36365586,186.44,186.41,0.66]
[1753489382433,6.01365586,186.44,186.41,0.66]
[1753489382618,6.01365586,186.44,186.39,17.44468397]
[1753489382808,6.01365586,186.44,186.4,0.66]
[1753489385132,5.36365586,186.44,186.41,0.66]
[1753489385513,6.01365586,186.44,186.39,16.78468397]
[1753489385814,6.01365586,186.44,186.4,0.66]
[1753489386217,0.65,186.43,186.4,0.66]
[1753489386744,0.65,186.44,186.4,0.66]
[1753489387115,5.36394357,186.43,186.4,0.66]
[1753489389233,0.68,186.43,186.4,0.66]
[1753489389418,0.68,186.43,186.39,16.78468397]
[1753489389618,0.68,186.43,186.39,17.45468397]
[1753489390137,18.76977529,186.47,186.4,0.67]
[1753489390315,0.68,186.45,186.41,16.78468397]
[1753489390514,0.68,186.45,186.41,17.45468397]
[1753489390928,18.76977529,186.47,186.41,17.45468397]
[1753489390929,0.68,186.44,186.41,17.45468397]
[1753489391315,5.36394357,186.43,186.4,16.78468397]
[1753489391732,5.36394357,186.43,186.4,17.45468397]
[1753489392135,5.36394357,186.43,186.4,16.78468397]
[1753489392436,5.36394357,186.43,186.41,0.67]
[1753489392940,0.68,186.43,186.4,16.78468397]
[1753489393332,0.68,186.43,186.4,17.45468397]
[1753489393638,0.68,186.44,186.41,0.67]
[1753489393938,6.04387665,186.44,186.41,0.67]
[1753489394537,5.36387665,186.44,186.41,0.67]
[1753489396332,6.04387665,186.44,186.41,0.67]
[1753489397525,6.04387665,186.44,186.4,16.78468397]
[1753489397732,6.04387665,186.44,186.4,17.45468397]
[1753489399552,0.68,186.44,186.4,17.45468397]
[1753489400326,0.68,186.43,186.4,17.45468397]
[1753489402053,0.68,186.42,186.38,88.07]
[1753489402255,0.68,186.41,186.39,16.78468397]
[1753489402434,5.36401291,186.43,186.39,16.78468397]
[1753489402632,0.68,186.42,186.39,16.78468397]
[1753489402833,0.68,186.42,186.39,17.45468397]
[1753489403151,5.36401291,186.43,186.4,0.67]
[1753489403341,0.68,186.42,186.39,16.78468397]
[1753489403549,0.68,186.42,186.39,17.45468397]
[1753489403930,5.36401291,186.43,186.39,17.45468397]
[1753489404159,6.04401291,186.43,186.4,0.67]
[1753489405457,0.68,186.44,186.4,0.67]
[1753489405640,13.40804312,186.46,186.4,0.67]
[1753489405641,0.68,186.43,186.4,0.67]
[1753489405839,0.68,186.43,186.39,16.78468397]
[1753489406046,0.68,186.43,186.39,17.45468397]
[1753489406463,6.04418582,186.43,186.4,0.67]
[1753489406850,5.36418582,186.43,186.4,0.67]
[1753489407177,6.04418582,186.43,186.4,0.67]
[1753489407349,6.04418582,186.43,186.39,17.45468397]
[1753489409056,6.04418582,186.43,186.4,0.67]
[1753489409640,5.36418582,186.43,186.4,0.67]
[1753489409840,6.04418582,186.43,186.4,0.67]
[1753489411063,6.04418582,186.43,186.38,16.78468397]
[1753489411064,0.68,186.42,186.38,17.45468397]
[1753489411246,0.68,186.42,186.39,0.67]
[1753489411648,0.68,186.44,186.4,0.67]
[1753489411954,0.68,186.43,186.4,0.67]
[1753489413950,0.68,186.43,186.4,38.01]
[1753489414838,4.29620104,186.46,186.41,17.45468397]
[1753489415042,0.68,186.46,186.42,0.67]
[1753489415249,0.68,186.45,186.42,0.67]
[1753489415458,0.68,186.45,186.41,17.45468397]
[1753489416244,3.61620104,186.49,186.43,18.42888397]
[1753489416452,0.68,186.51,186.44,38.54636558]
[1753489416761,0.68,186.51,186.46,16.78468397]
[1753489416945,0.68,186.51,186.47,37.34]
[1753489417142,0.68,186.51,186.47,38.01]
[1753489417961,3.61620104,186.54,186.5,16.78468397]
[1753489418249,0.71,186.54,186.5,16.78468397]
[1753489418462,0.71,186.53,186.5,16.78468397]
[1753489418866,0.71,186.53,186.5,17.47468397]
[1753489419745,0.71,186.52,186.5,16.78468397]
[1753489420553,0.71,186.51,186.42,88.09]
[1753489420762,2.3531,186.51,186.41,37.34]
[1753489420949,0.71,186.5,186.42,17.47468397]
[1753489421151,5.36221781,186.49,186.43,0.69]
[1753489421450,0.71,186.48,186.43,0.69]
[1753489421655,0.71,186.47,186.43,0.69]
[1753489422171,5.36221781,186.49,186.45,16.78468397]
[1753489422468,0.71,186.48,186.45,16.78468397]
[1753489422669,0.71,186.48,186.45,17.47468397]
[1753489423057,5.36221781,186.49,186.46,0.69]
[1753489423243,6.07221781,186.49,186.45,16.78468397]
[1753489423447,6.07221781,186.49,186.45,17.47468397]
[1753489424974,6.07221781,186.49,186.45,16.78468397]
[1753489425149,6.07221781,186.49,186.46,0.69]
[1753489425552,6.07221781,186.49,186.45,16.78468397]
[1753489425762,6.07221781,186.49,186.45,17.47468397]
[1753489426466,6.07221781,186.49,186.45,16.78468397]
[1753489426668,6.07221781,186.49,186.46,0.69]
[1753489426885,5.3616428,186.51,186.47,0.69]
[1753489427054,5.3616428,186.51,186.44,42.70356231]
[1753489427055,5.3616428,186.51,186.48,0.69]
[1753489427245,5.3616428,186.51,186.49,0.69]
[1753489427853,5.36144945,186.52,186.5,0.69]
[1753489428278,5.36110326,186.53,186.5,0.69]
[1753489430452,6.0708514,186.54,186.51,16.78468397]
[1753489430882,6.0708241,186.54,186.51,0.69]
[1753489431053,6.0708241,186.54,186.49,0.69]
[1753489431254,6.0708241,186.54,186.5,0.69]
[1753489431851,0.71,186.53,186.5,0.69]
[1753489432078,31.35991852,186.57,186.5,0.69]
[1753489432263,0.71,186.55,186.5,0.69]
[1753489432656,3.60299228,186.56,186.5,0.69]
[1753489432857,0.71,186.54,186.5,0.69]
[1753489433158,0.71,186.54,186.51,0.69]
[1753489434281,6.07094728,186.54,186.48,92.76248949]
[1753489434469,6.07094728,186.54,186.49,0.69]
[1753489434657,6.07094728,186.54,186.5,0.69]
[1753489435058,0.71,186.53,186.5,0.69]
[1753489440594,6.07112241,186.53,186.5,0.69]
[1753489440964,6.07112241,186.53,186.48,87.4]
[1753489441166,6.07112241,186.53,186.49,0.69]
[1753489441788,6.07112241,186.53,186.48,92.76246816]
[1753489441993,5.36049316,186.55,186.5,0.69]
[1753489442289,0.71,186.54,186.51,0.69]
[1753489442492,6.07105058,186.54,186.5,38.01]
[1753489442991,0.71,186.54,186.5,37.32]
[1753489443284,6.07081927,186.54,186.51,0.69]
[1753489444985,0.71,186.53,186.5,37.32]
[1753489445190,0.71,186.53,186.5,38.01]
[1753489446913,6.07124373,186.53,186.5,38.01]
[1753489448273,5.36124373,186.53,186.5,37.32]
[1753489448467,5.36124373,186.53,186.51,0.66]
[1753489449389,5.36078052,186.54,186.51,0.66]
[1753489449568,6.06078052,186.54,186.51,0.66]
[1753489450192,0.7,186.55,186.51,5.36160531]
[1753489450374,6.06013832,186.57,186.52,0.66]
[1753489450691,6.06013832,186.57,186.53,37.32]
[1753489450901,6.06013832,186.57,186.53,37.98]
[1753489451205,0.7,186.56,186.53,37.32]
[1753489451493,6.06049316,186.55,186.53,37.32]
[1753489452993,5.36028001,186.56,186.53,37.32]
[1753489453299,5.36028001,186.56,186.53,37.98]
[1753489453670,6.06028001,186.56,186.53,37.98]
[1753489454982,0.7,186.57,186.53,37.98]
[1753489455700,6.05934401,186.59,186.54,0.66]
[1753489455882,5.3591497,186.6,186.54,0.66]
[1753489456087,6.0591497,186.6,186.54,0.66]
[1753489457296,6.0591497,186.6,186.54,6.02076848]
[1753489457494,6.0591497,186.6,186.55,0.66]
[1753489457674,6.0591497,186.6,186.56,37.32]
[1753489457871,6.0591497,186.6,186.56,37.98]
[1753489460287,18.52326945,186.64,186.56,37.98]
[1753489460288,0.7,186.59,186.56,37.98]
[1753489462007,6.05947715,186.59,186.56,37.98]
[1753489465404,0.7,186.58,186.49,0.66]
[1753489465705,4.69987994,186.58,186.5,37.32]
[1753489465910,0.7,186.57,186.5,37.32]
[1753489466306,0.7,186.57,186.5,37.98]
[1753489466709,5.36020583,186.56,186.5,37.98]
[1753489466923,0.7,186.55,186.5,37.98]
[1753489468291,18.7607204,186.56,186.5,37.98]
[1753489468506,0.7,186.54,186.51,0.66]
[1753489468700,5.36106792,186.53,186.51,0.66]
[1753489468906,5.36106792,186.53,186.5,37.98]
[1753489469406,5.36106792,186.53,186.5,37.32]
[1753489469612,5.36106792,186.53,186.51,0.66]
[1753489469993,4.29845659,186.58,186.51,0.66]
[1753489470218,5.35991852,186.57,186.51,0.66]
[1753489471706,4.29845659,186.6,186.52,17.3208195]
[1753489471901,5.35934401,186.59,186.53,37.98]
[1753489472102,5.35934401,186.59,186.54,0.66]
[1753489472910,5.35934401,186.59,186.54,88.06]
[1753489473109,5.35934401,186.59,186.55,0.66]
[1753489473421,0.7,186.58,186.54,87.4]
[1753489473602,0.7,186.57,186.54,88.06]
[1753489473802,19.45770405,186.59,186.54,88.06]
[1753489474000,0.7,186.58,186.54,88.06]
[1753489475112,5.35991852,186.57,186.54,88.06]
[1753489476624,5.35991852,186.57,186.54,0.66]
[1753489480331,0.72,186.57,186.54,0.66]
[1753489481135,13.39836004,186.59,186.51,87.4]
[1753489481307,0.72,186.56,186.49,0.66]
[1753489481503,0.72,186.56,186.48,88.9605]
[1753489481813,0.72,186.56,186.49,37.3]
[1753489482420,5.36049316,186.55,186.49,37.3]
[1753489482618,9.36714272,186.55,186.49,37.3]
[1753489482922,4.72664956,186.54,186.49,37.3]
[1753489483130,0.72,186.53,186.49,37.3]
[1753489483432,0.72,186.53,186.46,0.66]
[1753489483640,0.72,186.53,186.46,37.3]
[1753489484400,18.76474372,186.52,186.46,37.96]
[1753489484630,0.72,186.51,186.46,37.96]
[1753489484831,0.72,186.51,186.47,0.66]
[1753489485831,5.36193029,186.5,186.47,0.66]
[1753489487932,13.40338837,186.52,186.47,0.66]
[1753489488113,0.72,186.5,186.47,0.66]
[1753489488309,0.72,186.5,186.46,37.3]
[1753489488507,0.72,186.5,186.46,37.96]
[1753489489518,0.72,186.5,186.46,37.3]
[1753489489730,0.72,186.5,186.47,0.66]
[1753489490033,5.36250536,186.48,186.46,37.3]
[1753489491004,5.3616428,186.51,186.47,0.66]
[1753489491836,5.3616428,186.51,186.48,0.66]
[1753489493711,5.3616428,186.51,186.46,37.3]
[1753489493712,5.3616428,186.51,186.49,0.66]
[1753489494118,5.3616428,186.51,186.5,0.66]
[1753489494434,5.36106792,186.53,186.49,37.98]
[1753489494635,0.72,186.52,186.49,37.98]
[1753489494935,0.72,186.52,186.49,37.32]
[1753489495311,5.36106792,186.53,186.5,0.66]
[1753489495513,6.08086189,186.54,186.51,0.66]
[1753489495814,5.36086189,186.54,186.51,0.66]
[1753489496015,6.07991852,186.57,186.52,37.98]
[1753489496329,6.07991852,186.57,186.53,0.66]
[1753489497051,5.35991852,186.57,186.54,0.66]
[1753489498438,6.07991852,186.57,186.54,0.66]
[1753489498739,6.07991852,186.57,186.52,37.32]
[1753489498942,6.07991852,186.57,186.53,0.66]
[1753489500244,6.07991852,186.57,186.54,0.66]
[1753489500741,0.72,186.56,186.52,37.98]
[1753489500943,5.35991852,186.57,186.51,88.9494]
[1753489501147,0.72,186.55,186.52,37.32]
[1753489502148,0.72,186.55,186.52,37.98]
[1753489502531,6.08075376,186.55,186.52,37.32]
[1753489502731,0.72,186.54,186.52,37.32]
[1753489503627,5.36075376,186.55,186.52,37.32]
[1753489503938,0.72,186.53,186.52,37.32]
[1753489504141,5.36075376,186.55,186.52,37.32]
[1753489504345,6.08075376,186.55,186.52,37.32]
[1753489504918,6.08075376,186.55,186.52,37.98]
[1753489506130,6.08075376,186.55,186.52,37.32]
[1753489507043,6.08075376,186.55,186.52,37.98]
[1753489508032,5.36075376,186.55,186.52,37.98]
[1753489508950,6.04075376,186.55,186.52,37.98]
[1753489509127,5.36075376,186.55,186.53,0.72]
[1753489509652,5.36075376,186.55,186.53,38.04]
[1753489509950,5.36020583,186.56,186.53,37.32]
[1753489510146,6.04020583,186.56,186.53,37.32]
[1753489510725,0.68,186.55,186.53,37.32]
[1753489510928,0.68,186.54,186.53,37.32]
[1753489511730,0.68,186.55,186.53,37.32]
[1753489512655,5.36078052,186.54,186.5,0.72]
[1753489512857,5.36078052,186.54,186.48,118.76243953]
[1753489512858,6.04078052,186.54,186.51,38.02]
[1753489513156,4.68572369,186.53,186.45,94.4805]
[1753489513351,4.68572369,186.53,186.46,37.3]
[1753489513555,0.68,186.52,186.46,38.02]
[1753489515040,5.3616428,186.51,186.46,38.02]
[1753489515260,0.68,186.5,186.46,38.02]
[1753489516558,0.68,186.5,186.47,0.72]
[1753489517132,5.36221781,186.49,186.47,0.72]
[1753489518449,5.36221781,186.49,186.46,37.3]
[1753489518658,5.36221781,186.49,186.46,38.02]
[1753489519452,5.36221781,186.49,186.47,0.72]
[1753489520153,5.36221781,186.49,186.46,37.3]
[1753489520355,5.36221781,186.49,186.46,38.02]
[1753489524153,6.04221781,186.49,186.46,38.02]
[1753489524451,5.36221781,186.49,186.46,38.02]
[1753489525850,5.36221781,186.49,186.47,0.72]
[1753489530472,5.36221781,186.49,186.46,37.3]
[1753489530772,0.68,186.49,186.46,38.02]
[1753489532576,0.68,186.5,186.46,38.02]
[1753489532876,5.36221781,186.49,186.46,38.02]
[1753489535474,0.68,186.49,186.46,38.02]
[1753489536174,0.68,186.49,186.46,0.72]
[1753489536475,5.36250536,186.48,186.46,0.72]
[1753489540676,5.36250536,186.48,186.45,37.32]
[1753489540861,5.36250536,186.48,186.45,37.99]
[1753489542978,0.67,186.47,186.45,37.32]
[1753489543677,0.67,186.46,186.42,0.67]
[1753489543979,0.67,186.46,186.42,37.32]
[1753489544497,4.0055962,186.49,186.42,37.99]
[1753489544683,0.67,186.46,186.42,37.99]
[1753489544856,5.36336819,186.45,186.42,37.32]
[1753489545257,6.03336819,186.45,186.42,37.99]
[1753489546681,5.36336819,186.45,186.43,0.67]
[1753489547283,5.36308055,186.46,186.43,0.67]
[1753489547778,6.03308055,186.46,186.43,0.67]
[1753489553062,5.36308055,186.46,186.44,0.67]
[1753489554661,5.36277459,186.48,186.45,0.67]
[1753489555367,5.36277459,186.48,186.43,16.78468397]
[1753489555772,6.03277459,186.48,186.44,0.67]
[1753489555970,6.03277459,186.48,186.45,0.67]
[1753489556291,5.36277459,186.48,186.45,0.67]
[1753489556786,6.03277459,186.48,186.45,0.67]
[1753489557980,5.36277459,186.48,186.43,16.78468397]
[1753489558180,0.67,186.47,186.44,0.67]
[1753489558879,6.03277459,186.48,186.44,0.67]
[1753489559280,0.67,186.47,186.44,0.67]
[1753489559779,6.03291904,186.47,186.44,0.67]
[1753489562486,5.36291904,186.47,186.44,0.67]
[1753489562699,0.67,186.48,186.45,0.67]
[1753489563197,0.67,186.48,186.45,37.99]
[1753489563900,6.03269311,186.48,186.45,37.99]
[1753489564099,9.63746164,186.5,186.46,0.67]
[1753489564278,4.01744336,186.49,186.47,0.67]
[1753489564472,5.36202359,186.5,186.47,0.67]
[1753489564789,9.37872493,186.51,186.48,0.67]
[1753489565097,10.04872493,186.51,186.48,0.67]
[1753489565283,6.03173861,186.51,186.48,0.67]
[1753489565486,8.96675704,186.53,186.48,37.99]
[1753489565686,0.67,186.54,186.49,0.67]
[1753489565986,0.67,186.54,186.49,6.03214499]
[1753489566189,0.67,186.54,186.5,0.67]
[1753489567089,9.63559373,186.57,186.51,54.10468397]
[1753489567289,6.03015568,186.57,186.52,0.67]
[1753489567483,0.67,186.56,186.53,0.67]
[1753489568082,18.75682186,186.6,186.53,0.67]
[1753489568286,0.71,186.58,186.54,0.72]
[1753489568800,0.71,186.58,186.54,38.02]
[1753489570006,6.06976737,186.58,186.54,38.02]
[1753489570195,0.71,186.57,186.54,38.02]
[1753489570695,5.35976737,186.58,186.55,0.72]
[1753489570896,6.06976737,186.58,186.54,38.02]
[1753489571074,0.71,186.57,186.54,38.02]
[1753489571476,0.71,186.57,186.54,37.3]
[1753489571993,5.35976737,186.58,186.54,38.02]
[1753489572288,0.71,186.58,186.54,38.02]
[1753489572485,0.71,186.58,186.54,37.3]
[1753489572684,6.0690568,186.6,186.55,0.72]
[1753489572884,0.71,186.59,186.55,0.72]
[1753489573399,5.3590568,186.6,186.56,0.72]